[Event "*** Titled Tuesday Blitz"]
[Site "Chess.com"]
[Date "2021.02.02"]
[Round "6"]
[White "BairaKovanova"]
[Black "ftorodent"]
[Result "0-1"]
[WhiteElo "2497"]
[BlackElo "2696"]
[TimeControl "180+1"]
[EndTime "11:08:05 PST"]
[Termination "ftorodent won by resignation"]

1. e4 {[%clk 0:03:00.9]} 1... c5 {[%clk 0:02:58.5]} 2. Nf3 {[%clk 0:02:56.9]}
2... e6 {[%clk 0:02:58.7]} 3. d3 {[%clk 0:02:56.8]} 3... Nc6 {[%clk 0:02:56.6]}
4. g3 {[%clk 0:02:56.6]} 4... g6 {[%clk 0:02:56.6]} 5. Bg2 {[%clk 0:02:57]} 5...
Bg7 {[%clk 0:02:57]} 6. O-O {[%clk 0:02:57.4]} 6... Nf6 {[%clk 0:02:53.6]} 7. c3
{[%clk 0:02:56.5]} 7... d5 {[%clk 0:02:50]} 8. Qe2 {[%clk 0:02:56.3]} 8... O-O
{[%clk 0:02:49.4]} 9. e5 {[%clk 0:02:52.4]} 9... Nd7 {[%clk 0:02:48.4]} 10. Bf4
{[%clk 0:02:51.3]} 10... b5 {[%clk 0:02:35.5]} 11. Re1 {[%clk 0:02:49.6]} 11...
a5 {[%clk 0:02:33.9]} 12. Nbd2 {[%clk 0:02:48.7]} 12... Ba6 {[%clk 0:02:33.7]}
13. h4 {[%clk 0:02:47.7]} 13... h6 {[%clk 0:02:30.7]} 14. Rac1 {[%clk
0:02:33.1]} 14... Rc8 {[%clk 0:02:25.1]} 15. Nf1 {[%clk 0:02:21.5]} 15... d4
{[%clk 0:02:08.4]} 16. N1d2 {[%clk 0:01:50.3]} 16... dxc3 {[%clk 0:01:52.1]} 17.
bxc3 {[%clk 0:01:50]} 17... Qe7 {[%clk 0:01:47]} 18. Qe3 {[%clk 0:01:32.1]}
18... Kh7 {[%clk 0:01:46.5]} 19. Ne4 {[%clk 0:01:25.2]} 19... Ncxe5 {[%clk
0:01:38.4]} 20. Nxe5 {[%clk 0:01:15]} 20... Nxe5 {[%clk 0:01:38.5]} 21. Ng5+
{[%clk 0:00:44.6]} 21... hxg5 {[%clk 0:01:36.9]} 22. Bxe5 {[%clk 0:00:44.7]}
22... f6 {[%clk 0:01:18]} 23. hxg5 {[%clk 0:00:34.4]} 23... fxe5 {[%clk
0:01:16.4]} 24. Be4 {[%clk 0:00:34.4]} 24... Bb7 {[%clk 0:01:11.4]} 25. Kg2
{[%clk 0:00:33.9]} 25... Bxe4+ {[%clk 0:01:09.2]} 26. dxe4 {[%clk 0:00:27.2]}
26... Kg8 {[%clk 0:01:04.3]} 27. Rh1 {[%clk 0:00:25.4]} 27... Rcd8 {[%clk
0:00:57.7]} 28. g4 {[%clk 0:00:15.6]} 28... Rf4 {[%clk 0:00:52.5]} 29. Qh3
{[%clk 0:00:14.5]} 29... Rd2 {[%clk 0:00:46.6]} 30. Qh7+ {[%clk 0:00:12.3]}
30... Kf7 {[%clk 0:00:46.7]} 31. Rcf1 {[%clk 0:00:07.6]} 31... Rxg4+ {[%clk
0:00:44.7]} 32. Kh3 {[%clk 0:00:06.3]} 32... Qxg5 {[%clk 0:00:43.3]} 0-1

[Event "*** Titled Tuesday Blitz"]
[Site "Chess.com"]
[Date "2021.02.02"]
[Round "6"]
[White "alexrustemov"]
[Black "GelmanAlexander"]
[Result "1-0"]
[WhiteElo "2772"]
[BlackElo "2583"]
[TimeControl "180+1"]
[EndTime "11:08:07 PST"]
[Termination "alexrustemov won by resignation"]

1. d4 {[%clk 0:03:00.9]} 1... Nf6 {[%clk 0:02:59.2]} 2. Nf3 {[%clk 0:03:00.1]}
2... c5 {[%clk 0:02:59.8]} 3. d5 {[%clk 0:02:57.9]} 3... e6 {[%clk 0:03:00.2]}
4. c4 {[%clk 0:02:57.6]} 4... b5 {[%clk 0:03:00.5]} 5. Bg5 {[%clk 0:02:56.4]}
5... exd5 {[%clk 0:02:48.8]} 6. cxd5 {[%clk 0:02:55.6]} 6... h6 {[%clk
0:02:47.1]} 7. Bxf6 {[%clk 0:02:55.4]} 7... Qxf6 {[%clk 0:02:46.9]} 8. Qc2
{[%clk 0:02:56]} 8... d6 {[%clk 0:02:36.4]} 9. e4 {[%clk 0:02:56.1]} 9... a6
{[%clk 0:02:35.4]} 10. a4 {[%clk 0:02:56.1]} 10... b4 {[%clk 0:02:30.1]} 11.
Nbd2 {[%clk 0:02:54.9]} 11... Be7 {[%clk 0:02:23.1]} 12. Bd3 {[%clk 0:02:51]}
12... O-O {[%clk 0:02:21.8]} 13. a5 {[%clk 0:02:50.4]} 13... Bg4 {[%clk
0:02:02.3]} 14. O-O {[%clk 0:02:47.4]} 14... Nd7 {[%clk 0:02:01.9]} 15. Rfe1
{[%clk 0:02:40.8]} 15... Rfe8 {[%clk 0:01:57.5]} 16. Re3 {[%clk 0:02:39.9]}
16... Bxf3 {[%clk 0:01:52]} 17. Rxf3 {[%clk 0:02:29.1]} 17... Qh4 {[%clk
0:01:47.5]} 18. Nc4 {[%clk 0:02:25.8]} 18... Bf8 {[%clk 0:01:34.5]} 19. Re3
{[%clk 0:02:12.4]} 19... Ne5 {[%clk 0:01:33.3]} 20. Nb6 {[%clk 0:02:11.4]} 20...
Ra7 {[%clk 0:01:31.9]} 21. Rae1 {[%clk 0:02:05.8]} 21... Ng4 {[%clk 0:01:24.6]}
22. Rh3 {[%clk 0:02:05]} 22... Qf6 {[%clk 0:01:22.1]} 23. Rf3 {[%clk 0:01:59.5]}
23... Qh4 {[%clk 0:01:20]} 24. h3 {[%clk 0:01:59]} 24... Ne5 {[%clk 0:01:20.2]}
25. Rfe3 {[%clk 0:01:59.2]} 25... g6 {[%clk 0:01:10.9]} 26. Bf1 {[%clk
0:01:58.1]} 26... g5 {[%clk 0:01:00.1]} 27. g3 {[%clk 0:01:55.1]} 27... Qh5
{[%clk 0:01:00.1]} 28. Kg2 {[%clk 0:01:53.2]} 28... Bg7 {[%clk 0:00:58.4]} 29.
b3 {[%clk 0:01:48.3]} 29... Kh8 {[%clk 0:00:56.5]} 30. Be2 {[%clk 0:01:46.4]}
30... Qg6 {[%clk 0:00:56.2]} 31. Qd1 {[%clk 0:01:47]} 31... f5 {[%clk
0:00:49.8]} 32. Bh5 {[%clk 0:01:46.4]} 32... Qf6 {[%clk 0:00:39.2]} 33. Bxe8
{[%clk 0:01:44.7]} 33... f4 {[%clk 0:00:39.7]} 34. Rf3 {[%clk 0:01:38.6]} 34...
Nxf3 {[%clk 0:00:32]} 35. Qxf3 {[%clk 0:01:39]} 35... Re7 {[%clk 0:00:30.5]} 36.
Bh5 {[%clk 0:01:37.1]} 36... Qb2 {[%clk 0:00:27.3]} 37. Re2 {[%clk 0:01:34]}
37... Qb1 {[%clk 0:00:25.6]} 38. Nc4 {[%clk 0:01:34.5]} 38... fxg3 {[%clk
0:00:24]} 39. Nxd6 {[%clk 0:01:22.2]} 39... gxf2 {[%clk 0:00:22.6]} 40. Rxf2
{[%clk 0:01:20.8]} 40... Qe1 {[%clk 0:00:16.9]} 41. Nf7+ {[%clk 0:01:11.5]}
41... Kg8 {[%clk 0:00:16.9]} 42. d6 {[%clk 0:01:02.6]} 42... Rxe4 {[%clk
0:00:16.9]} 43. d7 {[%clk 0:01:01.6]} 43... Rd4 {[%clk 0:00:14.7]} 44. d8=Q+
{[%clk 0:01:00.5]} 44... Rxd8 {[%clk 0:00:14.8]} 45. Nxd8 {[%clk 0:01:00.7]} 1-0

[Event "*** Titled Tuesday Blitz"]
[Site "Chess.com"]
[Date "2021.02.02"]
[Round "6"]
[White "ShapkinAnatoliy"]
[Black "WPWPWP-2015"]
[Result "0-1"]
[WhiteElo "2618"]
[BlackElo "2488"]
[TimeControl "180+1"]
[EndTime "11:08:07 PST"]
[Termination "WPWPWP-2015 won by resignation"]

1. d4 {[%clk 0:02:54.7]} 1... Nf6 {[%clk 0:02:59.3]} 2. c4 {[%clk 0:02:54.6]}
2... e6 {[%clk 0:02:59.8]} 3. g3 {[%clk 0:02:54.5]} 3... d5 {[%clk 0:02:58.1]}
4. Nf3 {[%clk 0:02:52.2]} 4... Bb4+ {[%clk 0:02:57.7]} 5. Qd2 {[%clk 0:02:52]}
5... Bxd2+ {[%clk 0:02:57.4]} 6. Nbxd2 {[%clk 0:02:52]} 6... O-O {[%clk
0:02:56.4]} 7. Bg2 {[%clk 0:02:52.1]} 7... c5 {[%clk 0:02:52.5]} 8. cxd5 {[%clk
0:02:46.9]} 8... Nxd5 {[%clk 0:02:49.3]} 9. O-O {[%clk 0:02:46.8]} 9... cxd4
{[%clk 0:02:48.2]} 10. Nxd4 {[%clk 0:02:46.2]} 10... Nc6 {[%clk 0:02:48.2]} 11.
Nxc6 {[%clk 0:02:45.7]} 11... bxc6 {[%clk 0:02:47.6]} 12. Ne4 {[%clk 0:02:46.6]}
12... Ba6 {[%clk 0:02:45.7]} 13. Bf3 {[%clk 0:02:44.7]} 13... f5 {[%clk
0:02:37.8]} 14. Nc5 {[%clk 0:02:41.7]} 14... Bc8 {[%clk 0:02:37.8]} 15. b3
{[%clk 0:02:32.8]} 15... Qf6 {[%clk 0:02:29.2]} 16. Ba3 {[%clk 0:02:30]} 16...
e5 {[%clk 0:02:24.4]} 17. e4 {[%clk 0:02:18.9]} 17... fxe4 {[%clk 0:02:15.6]}
18. Bxe4 {[%clk 0:02:18.7]} 18... Bh3 {[%clk 0:02:13.4]} 19. f3 {[%clk
0:01:58.9]} 19... Bxf1 {[%clk 0:02:10.7]} 20. Rxf1 {[%clk 0:01:59.8]} 20... Nc3
{[%clk 0:02:09.7]} 21. Bd3 {[%clk 0:01:46.1]} 21... e4 {[%clk 0:02:01.8]} 22.
Bc4+ {[%clk 0:01:36.3]} 22... Kh8 {[%clk 0:02:00.2]} 23. Ne6 {[%clk 0:01:36.8]}
23... Rfe8 {[%clk 0:01:46.7]} 24. fxe4 {[%clk 0:01:25.6]} 24... Qe5 {[%clk
0:01:45.1]} 25. Nf4 {[%clk 0:00:54.5]} 25... Nxe4 {[%clk 0:01:41.8]} 26. Bc1
{[%clk 0:00:44.9]} 26... Ng5 {[%clk 0:01:34.8]} 27. h4 {[%clk 0:00:39.9]} 27...
Ne4 {[%clk 0:01:29.1]} 28. Kg2 {[%clk 0:00:35.1]} 28... Nd6 {[%clk 0:01:24.4]}
29. Bd3 {[%clk 0:00:32.1]} 29... Rf8 {[%clk 0:01:22.1]} 30. Kh2 {[%clk
0:00:28.2]} 30... Nf5 {[%clk 0:01:11.9]} 31. Rf2 {[%clk 0:00:24.5]} 31... Rad8
{[%clk 0:01:06.5]} 32. Bb2 {[%clk 0:00:20.6]} 32... Qe3 {[%clk 0:01:03.9]} 33.
Bxg7+ {[%clk 0:00:08]} 33... Kxg7 {[%clk 0:01:00]} 34. Nh5+ {[%clk 0:00:08]}
34... Kh6 {[%clk 0:00:56.3]} 35. Rxf5 {[%clk 0:00:04.9]} 35... Rxf5 {[%clk
0:00:54]} 36. Bxf5 {[%clk 0:00:05.8]} 36... Qf2+ {[%clk 0:00:52.1]} 0-1

[Event "*** Titled Tuesday Blitz"]
[Site "Chess.com"]
[Date "2021.02.02"]
[Round "6"]
[White "TeukkaSalama"]
[Black "TST2014"]
[Result "0-1"]
[WhiteElo "2373"]
[BlackElo "2554"]
[TimeControl "180+1"]
[EndTime "11:08:07 PST"]
[Termination "TST2014 won by resignation"]

1. d4 {[%clk 0:03:00.9]} 1... Nf6 {[%clk 0:02:58.6]} 2. Bf4 {[%clk 0:03:00.6]}
2... d6 {[%clk 0:02:55.5]} 3. e3 {[%clk 0:03:01]} 3... g6 {[%clk 0:02:54.4]} 4.
Nf3 {[%clk 0:03:01.3]} 4... Bg7 {[%clk 0:02:54.8]} 5. Be2 {[%clk 0:03:02]} 5...
Nbd7 {[%clk 0:02:53.3]} 6. h3 {[%clk 0:03:01.4]} 6... O-O {[%clk 0:02:53]} 7.
O-O {[%clk 0:03:01.7]} 7... e6 {[%clk 0:02:53.5]} 8. c4 {[%clk 0:03:01.2]} 8...
Qe7 {[%clk 0:02:53.7]} 9. Nc3 {[%clk 0:03:01.9]} 9... b6 {[%clk 0:02:52.6]} 10.
Qc2 {[%clk 0:03:00]} 10... Bb7 {[%clk 0:02:52.6]} 11. b4 {[%clk 0:02:59.6]}
11... e5 {[%clk 0:02:49.3]} 12. Bh2 {[%clk 0:02:59.8]} 12... Rfe8 {[%clk
0:02:47.2]} 13. Rfe1 {[%clk 0:02:58.4]} 13... a6 {[%clk 0:02:44.4]} 14. a4
{[%clk 0:02:57.8]} 14... a5 {[%clk 0:02:44.1]} 15. b5 {[%clk 0:02:52.4]} 15...
Qf8 {[%clk 0:02:33.4]} 16. Rad1 {[%clk 0:02:48.6]} 16... h6 {[%clk 0:02:26.4]}
17. c5 {[%clk 0:02:38.2]} 17... bxc5 {[%clk 0:02:23]} 18. dxe5 {[%clk
0:02:38.2]} 18... dxe5 {[%clk 0:02:12.2]} 19. Bc4 {[%clk 0:02:17.9]} 19... Bxf3
{[%clk 0:02:08.3]} 20. gxf3 {[%clk 0:02:18.8]} 20... Nb6 {[%clk 0:02:08.3]} 21.
Ba2 {[%clk 0:02:00.8]} 21... c4 {[%clk 0:02:07.6]} 22. Kh1 {[%clk 0:01:51]}
22... Kh7 {[%clk 0:02:03.6]} 23. Rg1 {[%clk 0:01:49.5]} 23... Rad8 {[%clk
0:01:59.3]} 24. Bb1 {[%clk 0:01:45.5]} 24... Rxd1 {[%clk 0:01:52.8]} 25. Qxd1
{[%clk 0:01:44.9]} 25... Qb4 {[%clk 0:01:50.3]} 26. Qc2 {[%clk 0:01:35.1]} 26...
Kh8 {[%clk 0:01:45.5]} 27. Rd1 {[%clk 0:01:31.2]} 27... Qb3 {[%clk 0:01:43.5]}
28. Rd2 {[%clk 0:00:37.6]} 28... Qxc2 {[%clk 0:01:28.9]} 29. Bxc2 {[%clk
0:00:38.5]} 29... Nfd7 {[%clk 0:01:21.4]} 30. Nd5 {[%clk 0:00:27.5]} 30... Nxd5
{[%clk 0:01:15]} 31. Rxd5 {[%clk 0:00:28.4]} 31... Nb6 {[%clk 0:01:14.9]} 32.
Rc5 {[%clk 0:00:27.4]} 32... Re7 {[%clk 0:01:14.8]} 33. Kg2 {[%clk 0:00:24.6]}
33... Kg8 {[%clk 0:01:08.3]} 34. Kf1 {[%clk 0:00:24.8]} 34... Kf8 {[%clk
0:01:08.4]} 35. Ke2 {[%clk 0:00:25.3]} 35... Ke8 {[%clk 0:01:08.7]} 36. Kd2
{[%clk 0:00:18.8]} 36... Kd7 {[%clk 0:01:08.8]} 37. Be4 {[%clk 0:00:17.2]} 37...
Re6 {[%clk 0:01:06.2]} 38. Bc6+ {[%clk 0:00:16.5]} 38... Kd6 {[%clk 0:01:04.7]}
39. Kc3 {[%clk 0:00:05.5]} 39... Kxc5 {[%clk 0:01:03.6]} 40. e4 {[%clk 0:00:06]}
40... Nxa4+ {[%clk 0:01:00.8]} 0-1

[Event "*** Titled Tuesday Blitz"]
[Site "Chess.com"]
[Date "2021.02.02"]
[Round "6"]
[White "hleol"]
[Black "klimkoj"]
[Result "1-0"]
[WhiteElo "2418"]
[BlackElo "2547"]
[TimeControl "180+1"]
[EndTime "11:08:07 PST"]
[Termination "hleol won on time"]

1. d4 {[%clk 0:03:00.9]} 1... Nf6 {[%clk 0:02:59.5]} 2. Bg5 {[%clk 0:03:00]}
2... d5 {[%clk 0:02:59]} 3. e3 {[%clk 0:02:59.2]} 3... c5 {[%clk 0:02:58.4]} 4.
Nf3 {[%clk 0:02:54.2]} 4... Nc6 {[%clk 0:02:57.4]} 5. c3 {[%clk 0:02:53.7]} 5...
Bg4 {[%clk 0:02:49.8]} 6. Nbd2 {[%clk 0:02:52.9]} 6... h6 {[%clk 0:02:39.3]} 7.
Bh4 {[%clk 0:02:47.6]} 7... e6 {[%clk 0:02:31.7]} 8. Bd3 {[%clk 0:02:43.5]} 8...
Bd6 {[%clk 0:02:30.8]} 9. h3 {[%clk 0:02:42.5]} 9... Bxf3 {[%clk 0:02:20.6]} 10.
Nxf3 {[%clk 0:02:42]} 10... Qc7 {[%clk 0:02:11.1]} 11. dxc5 {[%clk 0:02:38.5]}
11... Bxc5 {[%clk 0:02:07.9]} 12. Bg3 {[%clk 0:02:38.4]} 12... Bd6 {[%clk
0:02:02]} 13. Bxd6 {[%clk 0:02:37.3]} 13... Qxd6 {[%clk 0:02:02.9]} 14. O-O
{[%clk 0:02:34.7]} 14... O-O {[%clk 0:01:58.5]} 15. Nd4 {[%clk 0:02:29.3]} 15...
Rac8 {[%clk 0:01:54.7]} 16. Nxc6 {[%clk 0:02:20.7]} 16... Rxc6 {[%clk
0:01:48.3]} 17. Qa4 {[%clk 0:02:17.4]} 17... a6 {[%clk 0:01:45.7]} 18. Rfd1
{[%clk 0:02:14.7]} 18... Qe5 {[%clk 0:01:26]} 19. Qd4 {[%clk 0:02:11.2]} 19...
Qc7 {[%clk 0:01:22.2]} 20. Kh1 {[%clk 0:02:06.5]} 20... Rd8 {[%clk 0:01:19.1]}
21. g4 {[%clk 0:01:54.6]} 21... e5 {[%clk 0:01:13.7]} 22. Qa4 {[%clk 0:01:54]}
22... Rb6 {[%clk 0:01:01.5]} 23. Rab1 {[%clk 0:01:49.7]} 23... e4 {[%clk
0:00:48.8]} 24. Be2 {[%clk 0:01:48.2]} 24... Nh7 {[%clk 0:00:46.8]} 25. c4
{[%clk 0:01:30.9]} 25... Ng5 {[%clk 0:00:43.9]} 26. Kg2 {[%clk 0:01:30.8]} 26...
Rf6 {[%clk 0:00:25.2]} 27. Rxd5 {[%clk 0:01:21.3]} 27... Rxd5 {[%clk 0:00:17.6]}
28. cxd5 {[%clk 0:01:21]} 28... b5 {[%clk 0:00:17.9]} 29. Qd1 {[%clk 0:01:13.1]}
29... h5 {[%clk 0:00:13.6]} 30. Rc1 {[%clk 0:01:08.7]} 30... Qd7 {[%clk
0:00:13.3]} 31. Rc6 {[%clk 0:00:59.4]} 31... Rxc6 {[%clk 0:00:06.8]} 32. dxc6
{[%clk 0:01:00.3]} 32... Qxd1 {[%clk 0:00:02.7]} 33. Bxd1 {[%clk 0:01:01.2]}
33... Ne6 {[%clk 0:00:02.6]} 34. gxh5 {[%clk 0:01:00.8]} 34... Kf8 {[%clk
0:00:02.6]} 35. Bg4 {[%clk 0:00:58.3]} 35... Nc7 {[%clk 0:00:02.2]} 36. Bf5
{[%clk 0:00:58.5]} 1-0

[Event "*** Titled Tuesday Blitz"]
[Site "Chess.com"]
[Date "2021.02.02"]
[Round "6"]
[White "Kildepiotr"]
[Black "2nd_life"]
[Result "1/2-1/2"]
[WhiteElo "2584"]
[BlackElo "2454"]
[TimeControl "180+1"]
[EndTime "11:08:08 PST"]
[Termination "Game drawn by repetition"]

1. Nf3 {[%clk 0:03:00.9]} 1... Nf6 {[%clk 0:02:59.7]} 2. g3 {[%clk 0:03:01.2]}
2... d5 {[%clk 0:02:59.5]} 3. Bg2 {[%clk 0:03:01.8]} 3... c6 {[%clk 0:03:00.1]}
4. O-O {[%clk 0:03:02.1]} 4... Bg4 {[%clk 0:03:00.4]} 5. d3 {[%clk 0:03:03]}
5... Nbd7 {[%clk 0:02:59.8]} 6. Nbd2 {[%clk 0:03:03.6]} 6... e6 {[%clk
0:02:59.7]} 7. e4 {[%clk 0:03:04.1]} 7... Bc5 {[%clk 0:02:57.6]} 8. h3 {[%clk
0:03:04.2]} 8... Bxf3 {[%clk 0:02:57.3]} 9. Qxf3 {[%clk 0:03:04]} 9... O-O
{[%clk 0:02:54.9]} 10. Qe2 {[%clk 0:03:04.1]} 10... a5 {[%clk 0:02:44.5]} 11.
Kh2 {[%clk 0:03:01.2]} 11... e5 {[%clk 0:02:36.1]} 12. Nf3 {[%clk 0:02:59.4]}
12... dxe4 {[%clk 0:02:32.7]} 13. dxe4 {[%clk 0:02:59.3]} 13... a4 {[%clk
0:02:31.9]} 14. Bg5 {[%clk 0:02:57.6]} 14... h6 {[%clk 0:02:27.8]} 15. Bd2
{[%clk 0:02:57.5]} 15... b5 {[%clk 0:02:23.3]} 16. b4 {[%clk 0:02:54.8]} 16...
axb3 {[%clk 0:02:08.3]} 17. axb3 {[%clk 0:02:53.4]} 17... Qe7 {[%clk 0:01:49.4]}
18. Nh4 {[%clk 0:02:52.7]} 18... Qe6 {[%clk 0:01:31]} 19. Nf5 {[%clk 0:02:51.8]}
19... Rfd8 {[%clk 0:01:22.8]} 20. Rfd1 {[%clk 0:02:42.8]} 20... Kh7 {[%clk
0:01:18.2]} 21. Be3 {[%clk 0:02:36]} 21... Bf8 {[%clk 0:01:10.3]} 22. Rxa8
{[%clk 0:02:24.8]} 22... Rxa8 {[%clk 0:01:09.4]} 23. Qd2 {[%clk 0:02:24.8]}
23... Nc5 {[%clk 0:00:56.3]} 24. f3 {[%clk 0:02:14.5]} 24... Nb7 {[%clk
0:00:41.4]} 25. h4 {[%clk 0:02:09.4]} 25... Rd8 {[%clk 0:00:38.3]} 26. Qc1
{[%clk 0:02:09.2]} 26... Rxd1 {[%clk 0:00:37.5]} 27. Qxd1 {[%clk 0:02:09.6]}
27... g6 {[%clk 0:00:34.6]} 28. Bh3 {[%clk 0:02:09.3]} 28... Qe8 {[%clk
0:00:33.5]} 29. Qd2 {[%clk 0:01:55.8]} 29... gxf5 {[%clk 0:00:12.7]} 30. Bxf5+
{[%clk 0:01:55.5]} 30... Kg8 {[%clk 0:00:12.4]} 31. Bxh6 {[%clk 0:01:55.6]}
31... Bxh6 {[%clk 0:00:09.3]} 32. Qxh6 {[%clk 0:01:56.5]} 32... Qe7 {[%clk
0:00:09.8]} 33. g4 {[%clk 0:01:52.8]} 33... Nd6 {[%clk 0:00:08.8]} 34. g5 {[%clk
0:01:48.5]} 34... Nxf5 {[%clk 0:00:08.9]} 35. exf5 {[%clk 0:01:47]} 35... Qc5
{[%clk 0:00:07.5]} 36. Qxf6 {[%clk 0:00:56.7]} 36... Qf2+ {[%clk 0:00:07.2]} 37.
Kh3 {[%clk 0:00:57]} 37... Qxf3+ {[%clk 0:00:07.4]} 38. Kh2 {[%clk 0:00:57.4]}
38... Qf2+ {[%clk 0:00:07.9]} 39. Kh3 {[%clk 0:00:57.9]} 39... Qf3+ {[%clk
0:00:08.2]} 40. Kh2 {[%clk 0:00:58.4]} 40... Qf2+ {[%clk 0:00:06.6]} 41. Kh3
{[%clk 0:00:58.5]} 41... Qf3+ {[%clk 0:00:07.1]} 1/2-1/2

[Event "*** Titled Tuesday Blitz"]
[Site "Chess.com"]
[Date "2021.02.02"]
[Round "6"]
[White "Fandorine"]
[Black "remi04"]
[Result "1-0"]
[WhiteElo "2829"]
[BlackElo "2616"]
[TimeControl "180+1"]
[EndTime "11:08:09 PST"]
[Termination "Fandorine won by resignation"]

1. d4 {[%clk 0:03:00.9]} 1... Nf6 {[%clk 0:02:59.2]} 2. Nf3 {[%clk 0:03:00.6]}
2... e6 {[%clk 0:02:58.5]} 3. c4 {[%clk 0:03:00.2]} 3... d5 {[%clk 0:02:58.5]}
4. g3 {[%clk 0:03:00.1]} 4... dxc4 {[%clk 0:02:57.1]} 5. Bg2 {[%clk 0:02:59.4]}
5... Be7 {[%clk 0:02:56.8]} 6. O-O {[%clk 0:02:57]} 6... O-O {[%clk 0:02:57]} 7.
Qc2 {[%clk 0:02:55]} 7... a6 {[%clk 0:02:57.3]} 8. a4 {[%clk 0:02:49.3]} 8...
Nbd7 {[%clk 0:02:54]} 9. Nbd2 {[%clk 0:02:41.9]} 9... c5 {[%clk 0:02:51.7]} 10.
Nxc4 {[%clk 0:02:37.8]} 10... cxd4 {[%clk 0:02:13.6]} 11. Nxd4 {[%clk
0:02:37.3]} 11... Bc5 {[%clk 0:02:09.7]} 12. Rd1 {[%clk 0:02:33.7]} 12... Qe7
{[%clk 0:02:06.6]} 13. Bf4 {[%clk 0:01:49.7]} 13... e5 {[%clk 0:01:32.9]} 14.
Nf5 {[%clk 0:01:49.8]} 14... Qe6 {[%clk 0:01:32.9]} 15. Be3 {[%clk 0:01:49.8]}
15... g6 {[%clk 0:01:21.4]} 16. Nfd6 {[%clk 0:01:34.7]} 16... Rb8 {[%clk
0:01:10.6]} 17. Bxc5 {[%clk 0:01:28.4]} 17... Nxc5 {[%clk 0:01:10.3]} 18. a5
{[%clk 0:01:12.4]} 18... h5 {[%clk 0:00:44.8]} 19. b4 {[%clk 0:01:06.2]} 19...
Ncd7 {[%clk 0:00:44.8]} 20. Ne3 {[%clk 0:00:59]} 20... b6 {[%clk 0:00:41.2]} 21.
axb6 {[%clk 0:00:47]} 21... Nxb6 {[%clk 0:00:39.9]} 22. Qc7 {[%clk 0:00:45.1]}
22... Bd7 {[%clk 0:00:34.1]} 23. Rxa6 {[%clk 0:00:40.8]} 23... Na8 {[%clk
0:00:28.2]} 24. Qa5 {[%clk 0:00:33.1]} 24... Qb3 {[%clk 0:00:25.2]} 25. Rxa8
{[%clk 0:00:27.3]} 25... Rxa8 {[%clk 0:00:22.8]} 26. Bxa8 {[%clk 0:00:28.2]}
26... Ng4 {[%clk 0:00:20.3]} 27. Bd5 {[%clk 0:00:27.7]} 27... Qc3 {[%clk
0:00:16.2]} 28. Ne4 {[%clk 0:00:22]} 1-0

[Event "*** Titled Tuesday Blitz"]
[Site "Chess.com"]
[Date "2021.02.02"]
[Round "6"]
[White "Jospem"]
[Black "Firstov"]
[Result "1-0"]
[WhiteElo "3032"]
[BlackElo "2505"]
[TimeControl "180+1"]
[EndTime "11:08:09 PST"]
[Termination "Jospem won by resignation"]

1. e4 {[%clk 0:03:00.9]} 1... b6 {[%clk 0:03:00.5]} 2. d4 {[%clk 0:03:01]} 2...
Bb7 {[%clk 0:03:00.2]} 3. Bd3 {[%clk 0:03:01.6]} 3... e6 {[%clk 0:03:00.5]} 4.
Qe2 {[%clk 0:03:01.8]} 4... Nf6 {[%clk 0:03:00]} 5. Nd2 {[%clk 0:03:01.6]} 5...
Be7 {[%clk 0:02:57]} 6. Ngf3 {[%clk 0:03:01.6]} 6... c5 {[%clk 0:02:56.7]} 7. c3
{[%clk 0:02:55.4]} 7... Nc6 {[%clk 0:02:56.4]} 8. a3 {[%clk 0:02:52.7]} 8... d6
{[%clk 0:02:24.7]} 9. O-O {[%clk 0:02:52.4]} 9... O-O {[%clk 0:02:24.2]} 10. Re1
{[%clk 0:02:37.3]} 10... e5 {[%clk 0:02:18.7]} 11. d5 {[%clk 0:02:36.8]} 11...
Nb8 {[%clk 0:02:15.9]} 12. b4 {[%clk 0:02:37.3]} 12... Nbd7 {[%clk 0:02:15]} 13.
Nc4 {[%clk 0:02:23.4]} 13... g6 {[%clk 0:02:02]} 14. a4 {[%clk 0:02:15.7]} 14...
Qc7 {[%clk 0:01:51.2]} 15. Bh6 {[%clk 0:02:05.9]} 15... Rfc8 {[%clk 0:01:47.2]}
16. Bd2 {[%clk 0:01:54.9]} 16... Nh5 {[%clk 0:01:41.2]} 17. g3 {[%clk
0:01:54.5]} 17... a6 {[%clk 0:01:25.9]} 18. b5 {[%clk 0:01:48.8]} 18... a5
{[%clk 0:01:25.2]} 19. Rf1 {[%clk 0:01:44.6]} 19... Rf8 {[%clk 0:01:10.8]} 20.
Ne1 {[%clk 0:01:44.4]} 20... Bf6 {[%clk 0:00:43.7]} 21. Ng2 {[%clk 0:01:41.5]}
21... Bg7 {[%clk 0:00:42.6]} 22. g4 {[%clk 0:01:30.9]} 22... Nhf6 {[%clk
0:00:37.8]} 23. f4 {[%clk 0:01:31]} 23... exf4 {[%clk 0:00:30.3]} 24. Bxf4
{[%clk 0:01:31.9]} 24... Ne5 {[%clk 0:00:29]} 25. Nxe5 {[%clk 0:01:12.1]} 25...
dxe5 {[%clk 0:00:29.3]} 26. Bg3 {[%clk 0:01:12.7]} 26... Ne8 {[%clk 0:00:27.5]}
27. Ne3 {[%clk 0:01:12.5]} 27... Nd6 {[%clk 0:00:22.2]} 28. Rf2 {[%clk
0:01:13.1]} 28... Rae8 {[%clk 0:00:19.1]} 29. Raf1 {[%clk 0:01:13.5]} 29... Bh6
{[%clk 0:00:18]} 30. Rf6 {[%clk 0:01:08.7]} 30... Bg5 {[%clk 0:00:16.7]} 31.
R6f2 {[%clk 0:01:01.8]} 31... Kg7 {[%clk 0:00:15.7]} 32. h4 {[%clk 0:01:01.7]}
32... Bxe3 {[%clk 0:00:15.3]} 33. Qxe3 {[%clk 0:01:02.6]} 33... f6 {[%clk
0:00:15.3]} 34. g5 {[%clk 0:01:01.8]} 34... f5 {[%clk 0:00:11.8]} 35. exf5
{[%clk 0:01:02.2]} 35... Nxf5 {[%clk 0:00:10.9]} 36. Bxf5 {[%clk 0:01:00.7]}
36... gxf5 {[%clk 0:00:10.6]} 37. Rxf5 {[%clk 0:01:01.2]} 37... Rxf5 {[%clk
0:00:09.9]} 38. Rxf5 {[%clk 0:01:02.1]} 38... Kg6 {[%clk 0:00:09.1]} 39. Qe4
{[%clk 0:00:59.1]} 39... Bxd5 {[%clk 0:00:04.8]} 40. Rf6+ {[%clk 0:00:59.1]}
40... Kg7 {[%clk 0:00:04.7]} 41. Qxd5 {[%clk 0:01:00]} 1-0